lending/lending_fUSD_20240824
["ID","MTS","AMOUNT","RATE_DAILY","PERIOD"]
[335792930,1724494235697,-518.91197033,0.00010997,2]
[335792931,1724494235707,-500.0,0.00010997,2]
[335792932,1724494235716,-500.0,0.00010997,2]
[335792933,1724494235726,-500.0,0.00010997,2]
[335792934,1724494235735,-500.0,0.00010997,2]
[335792935,1724494235745,-500.0,0.00010997,2]
[335792936,1724494235754,-500.0,0.00010997,2]
[335792937,1724494235764,-536.06,0.00010997,2]
[335792938,1724494235773,-500.0,0.00010997,2]
[335792939,1724494235782,-500.0,0.00010997,2]
[335792940,1724494235791,-500.0,0.00010997,2]
[335792941,1724494235801,-500.0,0.00010997,2]
[335792942,1724494235810,-500.0,0.00010997,2]
[335792943,1724494235819,-500.0,0.00010997,2]
[335792944,1724494235828,-500.0,0.00010997,2]
[335792945,1724494235837,-500.0,0.00010997,2]
[335792946,1724494235847,-824.92,0.00010997,2]
[335792947,1724494235857,-500.0,0.00010997,2]
[335792948,1724494235867,-778.68,0.00010997,2]
[335792949,1724494235876,-500.0,0.00010997,2]
[335792950,1724494235886,-500.0,0.00010997,2]
[335792951,1724494235895,-500.0,0.00010997,2]
[335792952,1724494235904,-500.0,0.00010997,2]
[335792953,1724494235913,-500.0,0.00010997,2]
[335792954,1724494235923,-500.0,0.00010997,2]
[335792955,1724494235932,-561.26,0.00010997,2]
[335792956,1724494235942,-626.80685654,0.00010997,2]
[335792957,1724494235951,-500.0,0.00010997,2]
[335792958,1724494235959,-500.0,0.00010997,2]
[335792959,1724494235969,-584.84,0.00010997,2]
[335792960,1724494235978,-500.0,0.00010997,2]
[335792961,1724494235988,-500.0,0.00010997,2]
[335792962,1724494235997,-500.0,0.00010997,2]
[335792963,1724494236006,-500.0,0.00010997,2]
[335792964,1724494236015,-500.0,0.00010997,2]
[335792965,1724494236024,-500.0,0.00010997,2]
[335792966,1724494236033,-547.00664445,0.00010997,2]
[335792967,1724494236042,-500.0,0.00010997,2]
[335792968,1724494236051,-500.0,0.00010997,2]
[335792969,1724494236060,-500.0,0.00010997,2]
[335792970,1724494236070,-500.0,0.00010997,2]
[335792971,1724494236080,-500.0,0.00010997,2]
[335792972,1724494236089,-505.09384864,0.00010997,2]
[335792973,1724494236098,-500.0,0.00010997,2]
[335792974,1724494236108,-500.0,0.00010997,2]
[335792975,1724494236117,-500.0,0.00010997,2]
[335792976,1724494236127,-343.35662716,0.00010997,2]
[335792977,1724494236136,-500.0,0.00010997,2]
[335792978,1724494236145,-498.32905049,0.00010997,2]
[335792979,1724494236154,-1207.62,0.00010997,2]
[335792980,1724494236164,-523.23743887,0.00010997,2]
[335792981,1724494236175,-500.0,0.00010997,2]
[335792982,1724494236184,-498.91944478,0.00010997,2]
[335792983,1724494236194,-512.81934509,0.00010997,2]
[335792984,1724494236203,-500.0,0.00010997,2]
[335792985,1724494236213,-517.87278639,0.00010997,2]
[335792986,1724494236223,-561.51,0.00010997,2]
[335792987,1724494236232,-500.0,0.00010997,2]
[335792988,1724494236242,-500.0,0.00010997,2]
[335792989,1724494236251,-500.0,0.00010997,2]
[335792990,1724494236260,-500.0,0.00010997,2]
[335792991,1724494236270,-508.38746043,0.00010997,2]
[335792992,1724494236279,-500.0,0.00010997,2]
[335792993,1724494236289,-500.0,0.00010997,2]
[335792994,1724494236299,-500.0,0.00010997,2]
[335792995,1724494236308,-500.0,0.00010997,2]
[335792996,1724494236318,-500.0,0.00010997,2]
[335792997,1724494236328,-487.13872522,0.00010997,2]
[335792998,1724494236337,-234.44754074,0.00010997,2]
[335792999,1724494236347,-595.4585171,0.00010997,2]
[335793000,1724494236357,-529.65284744,0.00010997,2]
[335793001,1724494236501,-500.0,0.00010997,2]
[335793002,1724494236511,-500.0,0.00010997,2]
[335793003,1724494236521,-500.0,0.00010997,2]
[335793004,1724494236531,-500.0,0.00010997,2]
[335793005,1724494236540,-261.722,0.00010997,2]
[335793006,1724494236549,-500.0,0.00010997,2]
[335793007,1724494236559,-313.26745002,0.00010997,2]
[335793008,1724494236568,-1017.08,0.00010997,2]
[335793009,1724494236577,-500.0,0.00010997,2]
[335793010,1724494236587,-500.0,0.00010997,2]
[335793011,1724494236596,-500.0,0.00010997,2]
[335793012,1724494236606,-405.60373982,0.00010997,2]
[335793013,1724494236615,-500.0,0.00010997,2]
[335793014,1724494236625,-500.0,0.00010997,2]
[335793015,1724494236636,-500.0,0.00010997,2]
[335793016,1724494236649,-500.0,0.00010997,2]
[335793017,1724494236658,-556.07,0.00010997,2]
[335793018,1724494236667,-500.0,0.00010997,2]
[335793019,1724494236677,-501.16407534,0.00010998,2]
[335793020,1724494236687,-504.51810087,0.00010998,2]
[335793021,1724494236696,-500.0,0.00010998,2]
[335793022,1724494236706,-402.44886409,0.00010998,2]
[335793023,1724494236716,-500.0,0.00010998,2]
[335793024,1724494236727,-496.21694018,0.00010998,2]
[335793025,1724494236737,-300.0,0.00010998,2]
[335793026,1724494236746,-472.15944578,0.00010998,2]
[335793027,1724494236755,-324.35502162,0.00010998,2]
[335793028,1724494236765,-499.4729165,0.00010998,2]
[335793029,1724494236774,-515.13106618,0.00010998,2]
[335793030,1724494236785,-519.41260909,0.00010998,2]
[335793031,1724494236795,-507.62103521,0.00010998,2]
[335793032,1724494236804,-506.80816753,0.00010998,2]
[335793033,1724494236814,-510.25625236,0.00010998,2]
[335793034,1724494236823,-241.80816042,0.00010998,2]
[335793035,1724494236833,-504.48789867,0.00010998,2]
[335793036,1724494236843,-505.64494894,0.00010998,2]
[335793037,1724494236852,-505.51036028,0.00010998,2]
[335793038,1724494236862,-500.0,0.00010998,2]
[335793039,1724494236872,-615.93259248,0.00010998,2]
[335793040,1724494236882,-507.38458672,0.00010998,2]
[335793041,1724494236891,-500.0,0.00010998,2]
[335793042,1724494236900,-508.8074529,0.00010998,2]
[335793043,1724494236910,-510.69369582,0.00010998,2]
[335793044,1724494236920,-510.53680637,0.00010998,2]
[335793045,1724494236931,-510.22854344,0.00010998,2]
[335793046,1724494236941,-284.03128959,0.00010998,2]
[335793047,1724494236950,-503.94068639,0.00010998,2]
[335793048,1724494236960,-509.68978504,0.00010998,2]
[335793049,1724494236970,-502.62419924,0.00010998,2]
[335793050,1724494236980,-611.8736741,0.00010998,2]
[335793051,1724494236989,-522.51677314,0.00010998,2]
[335793052,1724494236999,-503.54021601,0.00010998,2]
[335793053,1724494237009,-504.1592216,0.00010998,2]
[335793054,1724494237019,-500.0,0.00010998,2]
[335793055,1724494237028,-500.0,0.00010998,2]
[335793056,1724494237038,-500.85551574,0.00010998,2]
[335793057,1724494237048,-501.73502058,0.00010998,2]
[335793058,1724494237057,-500.0,0.00010998,2]
[335793059,1724494237066,-205.52078444,0.00010998,2]
[335793060,1724494237075,-622.36669283,0.00010998,2]
[335793061,1724494237085,-504.40716451,0.00010998,2]
[335793062,1724494237095,-567.88994316,0.00010998,2]
[335793063,1724494237108,-500.0,0.00010998,2]
[335793064,1724494237117,-512.95438157,0.00010998,2]
[335793065,1724494237128,-500.0,0.00010998,2]
[335793066,1724494237137,-513.9075173,0.00010998,2]
[335793067,1724494237146,-550.04531885,0.00010998,2]
[335793068,1724494237156,-519.20497514,0.00010998,2]
[335793069,1724494237165,-522.08311103,0.00010998,2]
[335793070,1724494237175,-500.0,0.00010998,2]
[335793071,1724494237185,-500.0,0.00010998,2]
[335793072,1724494237194,-500.0,0.00010998,2]
[335793073,1724494237203,-500.0,0.00010998,2]
[335793074,1724494237213,-500.0,0.00010998,2]
[335793075,1724494237223,-1033.97,0.00010998,2]
[335793076,1724494237232,-500.0,0.00010998,2]
[335793077,1724494237242,-500.0,0.00010998,2]
[335793078,1724494237251,-500.0,0.00010998,2]
[335793079,1724494237260,-500.0,0.00010998,2]
[335793080,1724494237270,-500.0,0.00010998,2]
[335793081,1724494237279,-500.0,0.00010998,2]
[335793082,1724494237288,-500.0,0.00010998,2]
[335793083,1724494237297,-587.5880187,0.00010998,2]
[335793084,1724494237307,-500.0,0.00010998,2]
[335793085,1724494237316,-500.0,0.00010998,2]
[335793086,1724494237326,-724.73,0.00010998,2]
[335793087,1724494237335,-818.12412769,0.00011,2]
[335793088,1724494237344,-965.64251707,0.00011,2]
[335793089,1724494237353,-2000.0,0.00011,2]
[335793090,1724494237363,-158.652,0.00011081,2]
[335793091,1724494237372,-420.0,0.00011132,2]
[335793092,1724494237381,-436.31,0.00011335,2]
[335793093,1724494237390,-420.78226377,0.00011412,2]
[335793094,1724494237401,-1000.0,0.00011524,2]
[335793096,1724494237410,-158.652,0.00011662,2]
[335793097,1724494237419,-515.97546,0.000118,2]
[335793098,1724494237428,-515.97546,0.0001181,2]
[335793099,1724494237438,-515.97546,0.0001184,2]
[335793100,1724494237447,-500.0,0.00011876,2]
[335793101,1724494237456,-515.97546,0.0001188,2]
[335793103,1724494237465,-515.97546,0.0001192,2]
[335793104,1724494237475,-515.97546,0.0001196,2]
[335793105,1724494237484,-2615.2223,0.00012027,2]
[335793106,1724494237494,-10000.0,0.00012127,2]
[335793107,1724494237503,-500.0,0.0001215,2]
[335793108,1724494237512,-587.0,0.00012244,2]
[335793109,1724494237522,-400.0,0.00012287,2]
[335793110,1724494237532,-20151.54199071,0.00012418,2]
[335793112,1724494237541,-333.18729678,0.00012697,2]
[335793114,1724494237551,-552.0,0.00012797,2]
[335793116,1724494237560,-1897.0,0.00012797,2]
[335793117,1724494237569,-3320.0,0.00012797,2]
[335793118,1724494237579,-1044.94,0.00012797,2]
[335793119,1724494237588,-157.364,0.00012797,2]
[335793120,1724494237597,-1077.0,0.00012797,2]
[335793121,1724494237607,-3729.0,0.00012797,2]
[335793122,1724494237616,-5848.0,0.00012797,2]
[335793123,1724494237626,-21784.0,0.00012797,2]
[335793124,1724494237635,-289.0,0.00012797,2]
[335793125,1724494237648,-1206.0,0.00012797,2]
[335793126,1724494237658,-1000.0,0.00012804,2]
[335793127,1724494237668,-1674.0,0.00012885,2]
[335793128,1724494237678,-739.15,0.00012888,2]
[335793129,1724494237689,-500.0,0.00012888,2]
[335793130,1724494237699,-612.48,0.00012888,2]
[335793131,1724494237709,-16560.06,0.00012888,2]
[335793132,1724494237718,-676.4,0.00012971,2]
[335793133,1724494237729,-500.0,0.00012971,2]
[335793134,1724494237739,-500.0,0.00012972,2]
[335793135,1724494237749,-500.0,0.00012988,2]
[335793136,1724494237759,-500.0,0.00012988,2]
[335793137,1724494237768,-3234.1,0.00012988,2]
[335793138,1724494237778,-500.0,0.00012988,2]
[335793139,1724494237786,-500.0,0.00012988,2]
[335793140,1724494237796,-500.0,0.00012988,2]
[335793141,1724494237805,-500.0,0.00012988,2]
[335793142,1724494237814,-500.0,0.00012988,2]
[335793143,1724494237824,-500.0,0.00012988,2]
[335793144,1724494237833,-500.0,0.00012988,2]
[335793145,1724494237842,-1303.39,0.00012988,2]
[335793146,1724494237852,-500.0,0.00012988,2]
[335793147,1724494237862,-500.0,0.00012988,2]
[335793148,1724494237871,-500.0,0.00012988,2]
[335793149,1724494237881,-574.95,0.00012988,2]
[335793150,1724494237890,-499.42404028,0.00012988,2]
[335793151,1724494237900,-500.0,0.00012988,2]
[335793152,1724494237910,-500.0,0.00012988,2]
[335793153,1724494237920,-500.0,0.00012988,2]
[335793154,1724494237930,-500.0,0.00012988,2]
[335793155,1724494237940,-500.0,0.00012988,2]
[335793156,1724494237949,-500.0,0.00012988,2]
[335793157,1724494237959,-500.0,0.00012988,2]
[335793159,1724494237969,-500.0,0.00012988,2]
[335793161,1724494237979,-373.64943432,0.00012988,2]
[335793163,1724494237989,-500.0,0.00012988,2]
[335793165,1724494237999,-2913.14,0.00012988,2]
[335793167,1724494238008,-500.0,0.00012988,2]
[335793169,1724494238018,-370.65264606,0.00012989,2]
[335793170,1724494238027,-500.0,0.00012989,2]
[335793171,1724494238037,-500.0,0.00012989,2]
[335793172,1724494238046,-500.0,0.00012989,2]
[335793173,1724494238055,-500.0,0.00012989,2]
[335793174,1724494238064,-529.04298724,0.00012989,2]
[335793175,1724494238074,-500.0,0.00012989,2]
[335793176,1724494238083,-500.0,0.00012989,2]
[335793177,1724494238092,-500.0,0.00012989,2]
[335793178,1724494238102,-500.0,0.00012989,2]
[335793179,1724494238112,-500.0,0.00012989,2]
[335793180,1724494238122,-500.0,0.00012989,2]
[335793182,1724494238131,-500.0,0.00012989,2]
[335793184,1724494238140,-500.0,0.00012989,2]
[335793186,1724494238150,-500.0,0.00012989,2]
[335793188,1724494238159,-500.0,0.00012989,2]
[335793190,1724494238171,-500.0,0.00012989,2]
[335793192,1724494238181,-500.0,0.00012989,2]
[335793195,1724494238190,-265.73897625,0.00012989,2]
[335793198,1724494238200,-500.0,0.00012989,2]
[335793200,1724494238210,-500.0,0.00012989,2]
[335793201,1724494238220,-500.0,0.00012989,2]
[335793203,1724494238229,-165.01592927,0.00012989,2]
[335793205,1724494238238,-500.0,0.00012989,2]
[335793207,1724494238247,-500.0,0.00012989,2]
[335793209,1724494238260,-167.05773547,0.00012989,2]
[335793211,1724494238269,-151.30393379,0.00012989,2]
[335793213,1724494238279,-500.0,0.00012989,2]
[335793215,1724494238288,-500.0,0.00012989,2]
[335793217,1724494238298,-500.0,0.00012989,2]
[335793219,1724494238307,-500.0,0.00012989,2]
[335793221,1724494238317,-500.0,0.00012989,2]
[335793223,1724494238326,-500.0,0.00012989,2]
[335793225,1724494238335,-500.0,0.00012989,2]
[335793227,1724494238345,-500.0,0.00012989,2]
[335793229,1724494238354,-368.0583385,0.00012989,2]
[335793231,1724494238363,-432.73668462,0.00012989,2]
[335793233,1724494238373,-500.0,0.00012989,2]
[335793234,1724494238382,-500.0,0.00012989,2]
[335793236,1724494238392,-509.41063701,0.00012989,2]
[335793238,1724494238402,-500.0,0.00012989,2]
[335793240,1724494238411,-500.0,0.00012989,2]
[335793242,1724494238421,-500.0,0.00012989,2]
[335793244,1724494238431,-500.0,0.00012989,2]
[335793246,1724494238441,-500.0,0.00012989,2]
[335793248,1724494238451,-500.0,0.00012989,2]
[335793250,1724494238460,-500.0,0.00012989,2]
[335793252,1724494238470,-150.0,0.00012989,2]
[335793254,1724494238479,-500.0,0.00012989,2]
[335793256,1724494238488,-500.0,0.00012989,2]
[335793258,1724494238498,-500.0,0.00012989,2]
[335793260,1724494238507,-500.0,0.00012989,2]
[335793262,1724494238517,-5000.0,0.00012989,2]
[335793264,1724494238526,-500.0,0.00012989,2]
[335793266,1724494238535,-500.0,0.00012989,2]
[335793268,1724494238544,-500.0,0.00012989,2]
[335793269,1724494238554,-424.28164693,0.00012989,2]
[335793273,1724494239176,-534.02114835,0.00010959,2]
[335793274,1724494239188,-328.80885165,0.00010959,2]
[335793275,1724494239198,-75.71835307,0.00012989,2]
[335793276,1724494239207,-504.11002029,0.00012989,2]
[335793277,1724494239217,-509.38087631,0.00012989,2]
[335793278,1724494239226,-500.0,0.00012989,2]
[335793279,1724494239237,-500.0,0.00012989,2]
[335793280,1724494239246,-446.16779955,0.00012989,2]
[335793281,1724494239261,-53.83220045,0.00012989,2]
[335793282,1724494239270,-500.0,0.00012989,2]
[335793283,1724494239279,-500.0,0.00012989,2]
[335793284,1724494239289,-1788.4,0.00012989,2]
[335793285,1724494239298,-500.0,0.00012989,2]
[335793286,1724494239308,-500.0,0.00012989,2]
[335793287,1724494239318,-685.9,0.00012989,2]
[335793288,1724494239327,-3729.54,0.00012989,2]
[335793289,1724494239338,-500.0,0.00012989,2]
[335793290,1724494239349,-500.0,0.00012989,2]
[335793291,1724494239359,-191.27907264,0.00012989,2]
[335793292,1724494239368,-500.0,0.00012989,2]
[335793293,1724494239377,-500.0,0.00012989,2]
[335793294,1724494239386,-500.0,0.00012989,2]
[335793295,1724494239396,-500.0,0.00012989,2]
[335793296,1724494239405,-500.0,0.00012989,2]
[335793297,1724494239415,-500.0,0.00012989,2]
[335793298,1724494239424,-160.0119416,0.00012989,2]
[335793299,1724494239436,-467.01793461,0.00012989,2]
[335793300,1724494239445,-500.0,0.00012989,2]
[335793301,1724494239455,-500.0,0.00012989,2]
[335793302,1724494239464,-132.98206539,0.00012989,2]
[335793303,1724494239475,-367.01793461,0.00012989,2]
[335793304,1724494239484,-500.0,0.00012989,2]
[335793305,1724494239493,-500.0,0.00012989,2]
[335793306,1724494239502,-500.0,0.00012989,2]
[335793307,1724494239512,-500.0,0.00012989,2]
[335793308,1724494239522,-500.0,0.00012989,2]
[335793309,1724494239531,-1562.67,0.00012989,2]
[335793310,1724494239540,-500.0,0.00012989,2]
[335793311,1724494239549,-500.0,0.00012989,2]
[335793312,1724494239558,-500.0,0.00012989,2]
[335793313,1724494239567,-500.0,0.00012989,2]
[335793314,1724494239576,-500.0,0.00012989,2]
[335793317,1724494239586,-500.0,0.00012989,2]
[335793318,1724494239595,-500.0,0.00012989,2]
[335793319,1724494239605,-500.0,0.00012989,2]
[335793320,1724494239614,-500.0,0.00012989,2]
[335793321,1724494239623,-500.0,0.00012989,2]
[335793322,1724494239633,-500.0,0.00012989,2]
[335793323,1724494239644,-1257.4,0.00012989,2]
[335793324,1724494239655,-500.0,0.00012989,2]
[335793325,1724494239664,-500.0,0.00012989,2]
[335793326,1724494239673,-500.0,0.00012989,2]
[335793327,1724494239683,-500.0,0.00012989,2]
[335793328,1724494239694,-500.0,0.00012989,2]
[335793329,1724494239703,-500.0,0.00012989,2]
[335793330,1724494239713,-500.0,0.00012989,2]
[335793331,1724494239727,-504.43,0.00012989,2]
[335793332,1724494239736,-500.0,0.00012989,2]
[335793333,1724494239746,-500.0,0.00012989,2]
[335793334,1724494239755,-544.4,0.00012989,2]
[335793335,1724494239765,-500.0,0.00012989,2]
[335793336,1724494239774,-500.0,0.00012989,2]
[335793337,1724494239783,-500.0,0.00012989,2]
[335793338,1724494239794,-500.0,0.00012989,2]
[335793339,1724494239803,-500.0,0.00012989,2]
[335793340,1724494239814,-500.0,0.00012989,2]
[335793341,1724494239825,-855.69,0.00012989,2]
[335793342,1724494239834,-500.0,0.00012989,2]
[335793343,1724494239843,-1832.78,0.00012989,2]
[335793344,1724494239853,-900.04,0.00012989,2]
[335793345,1724494239863,-397.968,0.0001299,2]
[335793346,1724494239872,-150.612,0.0001299,2]
[335793347,1724494239882,-153.0,0.0001299,2]
[335793348,1724494239891,-150.0,0.0001299,2]
[335793349,1724494239900,-286.683,0.0001299,2]
[335793350,1724494239911,-150.392,0.0001299,2]
[335793351,1724494239920,-1544.0,0.0001299,2]
[335793352,1724494239930,-1923.0,0.0001299,2]
[335793353,1724494239939,-1258.0,0.0001299,2]
[335793354,1724494239948,-622.0,0.0001299,2]
[335793355,1724494239957,-1138.0,0.0001299,2]
[335793356,1724494239966,-810.0,0.0001299,2]
[335793357,1724494239976,-447.0,0.0001299,2]
[335793358,1724494239985,-556.0,0.0001299,2]
[335793359,1724494239994,-26175.78791644,0.00013052,2]
[335793360,1724494240003,-162.72061764,0.00013231,2]
[335793361,1724494240012,-155.23840361,0.00013391,2]
[335793362,1724494240022,-823.0,0.00013466,2]
[335793363,1724494240031,-500.0,0.0001352,2]
[335793364,1724494240040,-436.31,0.00013599,2]
[335793365,1724494240050,-400.0,0.00013653,2]
[335793366,1724494240059,-203.10130847,0.00013688,2]
[335793367,1724494240068,-349.69257201,0.00013688,2]
[335793368,1724494240078,-1117.4595,0.00013697,2]
[335793369,1724494240087,-477.15433899,0.00013698,2]
[335793370,1724494240096,-293.57281943,0.00013698,2]
[335793371,1724494240106,-2751.0,0.00013699,2]
[335793372,1724494240115,-200.0,0.00013699,2]
[335793373,1724494240124,-500.0,0.00013699,2]
[335793374,1724494240133,-170.32,0.00013699,2]
[335793375,1724494240143,-177.81575934,0.00013795,2]
[335793376,1724494240152,-500.0,0.00013798,2]
[335793377,1724494240162,-500.0,0.00013798,2]
[335793378,1724494240172,-500.0,0.00013798,2]
[335793379,1724494240182,-522.66420237,0.00013798,2]
[335793380,1724494240191,-466.33914071,0.00013798,2]
[335793381,1724494240200,-500.0,0.00013798,2]
[335793382,1724494240211,-500.0,0.00013798,2]
[335793383,1724494240220,-500.0,0.00013798,2]
[335793384,1724494240230,-500.0,0.00013798,2]
[335793385,1724494240239,-500.0,0.00013798,2]
[335793386,1724494240248,-608.80231817,0.00013798,2]
[335793387,1724494240257,-504.73963542,0.00013798,2]
[335793388,1724494240267,-500.0,0.00013798,2]
[335793389,1724494240276,-500.0,0.00013798,2]
[335793390,1724494240285,-500.0,0.00013798,2]
[335793391,1724494240294,-500.0,0.00013798,2]
[335793392,1724494240306,-500.0,0.00013798,2]
[335793393,1724494240316,-500.0,0.00013798,2]
[335793394,1724494240325,-500.0,0.00013798,2]
[335793395,1724494240334,-500.0,0.00013798,2]
[335793396,1724494240343,-628.64356332,0.00013798,2]
[335793397,1724494240352,-500.0,0.00013798,2]
[335793398,1724494240364,-500.0,0.00013798,2]
[335793399,1724494240372,-500.0,0.00013798,2]
[335793400,1724494240382,-500.0,0.00013798,2]
[335793401,1724494240391,-500.0,0.00013798,2]
[335793402,1724494240400,-500.0,0.00013798,2]
[335793403,1724494240409,-500.0,0.00013798,2]
[335793404,1724494240418,-500.0,0.00013798,2]
[335793405,1724494240427,-500.0,0.00013798,2]
[335793406,1724494240437,-500.0,0.00013798,2]
[335793407,1724494240446,-500.0,0.00013798,2]
[335793408,1724494240455,-500.0,0.00013798,2]
[335793409,1724494240464,-500.0,0.00013798,2]
[335793410,1724494240473,-500.0,0.00013798,2]
[335793411,1724494240482,-500.0,0.00013798,2]
[335793412,1724494240491,-500.0,0.00013798,2]
[335793413,1724494240501,-500.0,0.00013798,2]
[335793414,1724494240510,-518.74689107,0.00013798,2]
[335793415,1724494240519,-500.0,0.00013798,2]
[335793416,1724494240528,-500.0,0.00013798,2]
[335793417,1724494240537,-500.0,0.00013798,2]
[335793418,1724494240546,-500.0,0.00013798,2]
[335793419,1724494240555,-500.0,0.00013798,2]
[335793420,1724494240564,-500.0,0.00013798,2]
[335793421,1724494240573,-500.0,0.00013798,2]
[335793422,1724494240582,-500.0,0.00013798,2]
[335793423,1724494240592,-500.0,0.00013798,2]
[335793424,1724494240601,-500.0,0.00013798,2]
[335793425,1724494240610,-500.0,0.00013798,2]
[335793426,1724494240619,-500.0,0.00013798,2]
[335793427,1724494240628,-500.0,0.00013798,2]
[335793428,1724494240638,-500.0,0.00013798,2]
[335793429,1724494240651,-500.0,0.00013798,2]
[335793430,1724494240660,-500.0,0.00013798,2]
[335793431,1724494240669,-500.0,0.00013798,2]
[335793432,1724494240679,-522.24536415,0.00013798,2]
[335793433,1724494240690,-257.13363115,0.00013798,2]
[335793434,1724494240700,-500.0,0.00013798,2]
[335793435,1724494240710,-500.0,0.00013798,2]
[335793436,1724494240719,-500.0,0.00013798,2]
[335793437,1724494240729,-731.76,0.00013798,2]
[335793438,1724494240739,-150.0,0.00013798,2]
[335793439,1724494240749,-500.0,0.00013798,2]
[335793440,1724494240759,-500.0,0.00013798,2]
[335793441,1724494240768,-500.0,0.00013798,2]
[335793442,1724494240777,-500.0,0.00013798,2]
[335793443,1724494240787,-500.0,0.00013798,2]
[335793444,1724494240796,-500.0,0.00013798,2]
[335793445,1724494240805,-500.0,0.00013798,2]
[335793446,1724494240815,-278.38810116,0.00013798,2]
[335793447,1724494240829,-221.61189884,0.00013798,2]
[335793448,1724494240839,-59.9437593,0.00013798,2]
[335793449,1724494240854,-440.0562407,0.00013798,2]
[335793450,1724494240864,-500.0,0.00013798,2]
[335793451,1724494240873,-214.92616866,0.00013798,2]
[335793452,1724494240883,-201.02355718,0.00013798,2]
[335793453,1724494240894,-298.97644282,0.00013798,2]
[335793454,1724494240903,-500.0,0.00013798,2]
[335793455,1724494240913,-500.0,0.00013798,2]
[335793456,1724494240923,-500.0,0.00013798,2]
[335793457,1724494240932,-500.0,0.00013798,2]
[335793458,1724494240941,-500.0,0.00013798,2]
[335793459,1724494240951,-500.0,0.00013798,2]
[335793460,1724494240960,-500.0,0.00013798,2]
[335793461,1724494240970,-500.0,0.00013798,2]
[335793462,1724494240980,-543.80850027,0.00013798,2]
[335793463,1724494240989,-367.67698088,0.00013798,2]
[335793464,1724494240999,-517.62,0.00013798,2]
[335793465,1724494241009,-356.69209472,0.00013798,2]
[335793466,1724494241025,-143.30790528,0.00013798,2]
[335793467,1724494241036,-500.0,0.00013798,2]
[335793468,1724494241046,-500.0,0.00013798,2]
[335793469,1724494241056,-500.0,0.00013798,2]
[335793470,1724494241065,-514.19493771,0.00013798,2]
[335793471,1724494241074,-500.0,0.00013798,2]
[335793472,1724494241084,-255.16021681,0.00013798,2]
[335793473,1724494241093,-500.0,0.00013798,2]
[335793474,1724494241102,-330.03911583,0.00013798,2]
[335793475,1724494241115,-169.96088417,0.00013798,2]
[335793476,1724494241124,-807.00687997,0.00013798,2]
[335793477,1724494241136,-182.37312003,0.00013798,2]
[335793478,1724494241146,-560.37379972,0.00013798,2]
[335793479,1724494241155,-85.95269982,0.00013798,2]
[335793480,1724494241215,-4462.60172259,0.00012127,2]
[335793481,1724494241225,-414.04730018,0.00013798,2]
[335793482,1724494241234,-292.68690083,0.00013798,2]
[335793483,1724494241244,-622.67,0.00013798,2]
[335793484,1724494241253,-500.0,0.00013798,2]
[335793485,1724494241263,-500.0,0.00013798,2]
[335793486,1724494241273,-970.92,0.00013798,2]
[335793487,1724494241283,-500.0,0.00013798,2]
[335793488,1724494241293,-500.0,0.00013798,2]
[335793489,1724494241302,-500.0,0.00013798,2]